[Event "WSTCC-50 2024"]
[Site "Krakow"]
[Date "2024.07.07"]
[Round "6.24"]
[White "Jezierska, Ivona"]
[Black "Zielinski, Olgierd"]
[Result "1-0"]
[ECO "B22"]
[WhiteElo "2079"]
[BlackElo "1913"]
[Annotator "RC"]
[PlyCount "115"]
[EventDate "2024.07.01"]
[EventType "team-tourn"]
[EventCountry "POL"]
[SourceTitle "playchess.com"]
[Source "ChessBase"]
[SourceQuality "1"]
[TimeControl "40/5400+30:1800+30"]

1. e4 {[%emt 0:00:04]} c5 {[%emt 0:00:06]} 2. c3 {[%emt 0:00:12]} d5 {[%emt 0:00:07]} 3. exd5 {[%emt 0:00:09]} Qxd5 {[%emt 0:00:07]} 4. d4 {[%emt 0:00:06]} Nc6 {[%emt 0:00:11]} 5. Nf3 {[%emt 0:04:35]} Bf5 {[%emt 0:00:09]} 6. Be3 {[%emt 0:01:04]} cxd4 {[%emt 0:01:06]} 7. Nxd4 {[%emt 0:00:43]} Nxd4 {[%emt 0:02:43]} 8. cxd4 {[%emt 0:00:23]} Nf6 {[%emt 0:02:54]} 9. Nc3 {[%emt 0:00:33]} Qa5 {[%emt 0:00:06]} 10. Bc4 {[%emt 0:01:38]} e6 {[%emt 0:04:14]} 11. Bb5+ {[%emt 0:05:33]} Kd8 {[%emt 0:06:21]} 12. O-O {[%emt 0:01:14]} Nd5 {[%emt 0:01:06]} 13. Qb3 {[%emt 0:07:33]} Qb4 {[%emt 0:03:23]} 14. Nxd5 {[%emt 0:01:57]} Qxb3 {[%emt 0:00:08]} 15. axb3 {[%emt 0:00:11]} exd5 {[%emt 0:00:06]} 16. Bd2 {[%emt 0:00:52]} Bd6 {[%emt 0:01:37]} 17. Ba5+ {[%emt 0:02:33]} Ke7 {[%emt 0:01:10]} 18. Rfe1+ {[%emt 0:15:18]} Kf6 {[%emt 0:00:37]} 19. Bd2 {[%emt 0:04:15]} a6 {[%emt 0:00:37]} 20. Be2 {[%emt 0:00:59]} Rhc8 {[%emt 0:00:55]} 21. g4 {[%emt 0:00:58]} Be4 {[%emt 0:01:58]} 22. f3 {[%emt 0:00:11]} Bc2 {[%emt 0:00:09]} 23. Rac1 {[%emt 0:01:29]} g5 {[%emt 0:03:47]} 24. b4 {[%emt 0:05:37]} Rc7 {[%emt 0:05:32]} 25. Bc3 {[%emt 0:05:15]} Bg6 {[%emt 0:03:50]} 26. Ra1 {[%emt 0:00:14]} Re8 {[%emt 0:02:11]} 27. Ra5 {[%emt 0:00:40]} Rce7 {[%emt 0:17:32]} 28. Rxd5 {[%emt 0:07:35]} Bxh2+ {[%emt 0:00:21]} 29. Kxh2 {[%emt 0:00:15]} Rxe2+ {[%emt 0:00:05]} 30. Rxe2 {[%emt 0:00:09]} Rxe2+ {[%emt 0:00:06]} 31. Kg1 {[%emt 0:00:25]} Ke6 {[%emt 0:12:23]} 32. Rxg5 {[%emt 0:00:54]} b6 {[%emt 0:00:27]} 33. d5+ {[%emt 0:11:38]} Kd6 {[%emt 0:03:35]} 34. Bg7 {[%emt 0:00:20]} Re8 {[%emt 0:04:02]} 35. Kf2 {[%emt 0:04:12]} Kd7 {[%emt 0:13:23]} 36. f4 {[%emt 0:01:48]} Be4 {[%emt 0:05:51]} 37. Bd4 {[%emt 0:00:29]} f5 {[%emt 0:01:08]} 38. Bxb6 {[%emt 0:01:02]} Kd6 {[%emt 0:00:44]} 39. gxf5 {[%emt 0:00:49]} Kxd5 {[%emt 0:01:43]} 40. f6+ {[%emt 0:01:50]} Ke6 {[%emt 0:00:20]} 41. Bd4 {[%emt 0:30:23]} Bg6 {[%emt 0:32:45]} 42. Kf3 {[%emt 0:01:01]} Bd3 {[%emt 0:00:00]} 43. Rg7 {[%emt 0:00:00]} Rf8 {[%emt 0:00:00]} 44. Kg4 {[%emt 0:00:00]} Rf7 {[%emt 0:00:00]} 45. Rg8 {[%emt 0:00:00]} Kd7 {[%emt 0:00:00]} 46. Kg5 {[%emt 0:00:00]} Bc4 {[%emt 0:00:00]} 47. Ra8 {[%emt 0:00:00]} Bb5 {[%emt 0:00:00]} 48. Bc5 {[%emt 0:00:00]} Be2 {[%emt 0:00:00]} 49. Be7 {[%emt 0:00:00]} Bf1 {[%emt 0:00:00]} 50. Rd8+ {[%emt 0:00:00]} Kc7 {[%emt 0:00:00]} 51. Kf5 {[%emt 0:00:00]} Bc4 {[%emt 0:00:00]} 52. Rd4 {[%emt 0:00:00]} Bb3 {[%emt 0:00:00]} 53. Ke5 {[%emt 0:00:00]} Kb7 {[%emt 0:02:31]} 54. Rd3 {[%emt 0:00:00]} Ba2 {[%emt 0:00:24]} 55. b3 {[%emt 0:00:00]} Bb1 {[%emt 0:00:07]} 56. Rc3 {[%emt 0:00:00]} h5 {[%emt 0:04:30]} 57. Ke6 {[%emt 0:00:00]} Bg6 {[%emt 0:00:08]} 58. f5 {[%emt 0:00:00]} 1-0

[Event "WSTCC-50 2024"]
[Site "Krakow"]
[Date "2024.07.07"]
[Round "6.24"]
[White "Proudfoot, Andy"]
[Black "Goman, Colin"]
[Result "1-0"]
[ECO "B07"]
[WhiteElo "1607"]
[BlackElo "1759"]
[Annotator "NA RC"]
[PlyCount "29"]
[EventDate "2024.07.01"]
[EventType "team-tourn"]
[EventCountry "POL"]
[SourceTitle "playchess.com"]
[Source "ChessBase"]
[SourceQuality "1"]
[TimeControl "40/5400+30:1800+30"]

1. e4 {[%emt 0:00:12]} d6 {[%emt 0:00:38]} 2. d4 {[%emt 0:00:27]} Nf6 {[%emt 0:00:14]} 3. Nc3 {[%emt 0:00:19]} Nbd7 {[%emt 0:09:30]} 4. Bc4 {[%emt 0:03:00]} e6 {[%emt 0:04:11]} 5. Nf3 {[%emt 0:01:03]} b6 {[%emt 0:06:06]} 6. Qe2 {[%emt 0:10:29]} Bb7 {[%emt 0:04:01]} 7. d5 {[%emt 0:10:15]} e5 {[%emt 0:07:15]} 8. a3 {[%emt 0:04:54]} a6 {[%emt 0:08:36]} 9. Bd2 {[%emt 0:04:59]} Be7 {[%emt 0:03:31]} 10. h3 {[%emt 0:07:22]} b5 {[%emt 0:06:23]} 11. Ba2 {[%emt 0:05:15]} h6 {[%emt 0:02:37]} 12. Nh2 {[%emt 0:06:50]} Nh5 {[%emt 0:04:28]} 13. Qxh5 {[%emt 0:00:22]} g6 {[%emt 0:00:48]} 14. Qe2 {[%emt 0:02:39]} O-O {[%emt 0:00:13]} 15. Bxh6 {[%emt 0:00:18]} 1-0

[Event "WSTCC-50 2024"]
[Site "Krakow"]
[Date "2024.07.09"]
[Round "7.1"]
[White "Hjartarson, Johann"]
[Black "Ehlvest, Jaan"]
[Result "1/2-1/2"]
[ECO "D63"]
[WhiteElo "2472"]
[BlackElo "2528"]
[Annotator "TA"]
[PlyCount "42"]
[EventDate "2024.07.01"]
[EventType "team-tourn"]
[EventCountry "POL"]
[SourceTitle "playchess.com"]
[Source "ChessBase"]
[SourceQuality "1"]
[TimeControl "40/5400+30:1800+30"]

{[%evp 22,42,41,26,27,2,0,0,29,10,0,0,0,-25,-15,-22,-10,-39,-16,-75,-68,-88,-41]} 1. d4 {[%emt 0:00:06]} Nf6 {[%emt 0:00:08]} 2. c4 {[%emt 0:00:06]} e6 {[%emt 0:00:03]} 3. Nf3 {[%emt 0:00:09]} d5 {[%emt 0:00:11]} 4. Nc3 {[%emt 0:00:09]} Be7 {[%emt 0:00:06]} 5. Bg5 {[%emt 0:00:16]} O-O {[%emt 0:00:07]} 6. e3 {[%emt 0:00:08]} Nbd7 {[%emt 0:00:05]} 7. Rc1 {[%emt 0:01:40]} h6 {[%emt 0:00:18]} 8. Bh4 {[%emt 0:00:22]} dxc4 {[%emt 0:00:21]} 9. Bxc4 {[%emt 0:00:09]} c5 {[%emt 0:00:06]} 10. O-O {[%emt 0:00:44]} a6 {[%emt 0:00:08]} 11. a4 {[%emt 0:03:03]} cxd4 {[%emt 0:00:10]} 12. exd4 {[%emt 0:02:12]} Nb6 {[%emt 0:00:09][%cal Bd7b6,Bb6d5,Bd5b4][%mdl 32]} 13. Bd3 {[%emt 0:02:14]} Bd7 {[%emt 0:03:39]} 14. Ne5 {[%emt 0:00:34]} Bc6 {[%emt 0:00:38] The position is equal.} 15. Nxc6 {[%emt 0:01:58]} bxc6 {[%emt 0:00:35]} 16. Bb1 {[%emt 0:07:19]} Nbd5 {[%emt 0:03:29]} 17. Qd3 {[%emt 0:02:41] [#] Strongly threatening Nxd5.} Nb4 {[%emt 0:06:29] A dynamic duo of knights.} 18. Qc4 {[%emt 0:00:56]} a5 {[%emt 0:01:13]} 19. Rcd1 {[%emt 0:08:19]} Nh5 {[%emt 0:07:34]} 20. Bg3 {[%emt 0:01:54]} (20. Bxe7 $11 {remains equal.} Qxe7 21. Rd2) 20... Nxg3 $17 {[%emt 0:00:28]} 21. hxg3 {[%emt 0:00:07]} Bf6 {[%emt 0:02:20] Weighted Error Value: White=0.22 (precise) /Black=0.03 (flawless) .  Mistake:       	White=1     	Black=1      Inaccurate:     	White=1     	---        OK:         	White=1     	Black=5      Best:        	---       	Black=1} (21... Qb6 $17) 1/2-1/2

[Event "WSTCC-50 2024"]
[Site "Krakow"]
[Date "2024.07.09"]
[Round "7.1"]
[White "Lalic, Susan K"]
[Black "Buckley, Graeme N"]
[Result "1/2-1/2"]
[ECO "E73"]
[WhiteElo "2235"]
[BlackElo "2334"]
[Annotator "RC"]
[PlyCount "24"]
[EventDate "2024.07.01"]
[EventType "team-tourn"]
[EventCountry "POL"]
[SourceTitle "playchess.com"]
[Source "ChessBase"]
[SourceQuality "1"]
[TimeControl "40/5400+30:1800+30"]

1. d4 {[%emt 0:00:11]} Nf6 {[%emt 0:00:03]} 2. c4 {[%emt 0:00:18]} g6 {[%emt 0:00:06]} 3. Nc3 {[%emt 0:00:12]} Bg7 {[%emt 0:00:05]} 4. e4 {[%emt 0:01:22]} d6 {[%emt 0:00:11]} 5. Be2 {[%emt 0:01:33]} O-O {[%emt 0:02:19]} 6. Be3 {[%emt 0:02:49]} e5 {[%emt 0:00:48]} 7. dxe5 {[%emt 0:04:21]} dxe5 {[%emt 0:00:05]} 8. Nf3 {[%emt 0:00:13]} Qe7 {[%emt 0:01:37]} 9. Nd5 {[%emt 0:04:57]} Nxd5 {[%emt 0:00:32]} 10. cxd5 {[%emt 0:00:07]} c6 {[%emt 0:02:12]} 11. O-O {[%emt 0:00:58]} cxd5 {[%emt 0:00:19]} 12. Qxd5 {[%emt 0:00:12]} Be6 {[%emt 0:01:13]} 1/2-1/2

[Event "WSTCC-50 2024"]
[Site "Krakow"]
[Date "2024.07.09"]
[Round "7.1"]
[White "Crocker, Philip J"]
[Black "Horvath, Julia"]
[Result "1/2-1/2"]
[ECO "A20"]
[WhiteElo "2122"]
[BlackElo "2116"]
[Annotator "RC"]
[PlyCount "95"]
[EventDate "2024.07.01"]
[EventType "team-tourn"]
[EventCountry "POL"]
[SourceTitle "playchess.com"]
[Source "ChessBase"]
[SourceQuality "1"]
[TimeControl "40/5400+30:1800+30"]

1. c4 {[%emt 0:00:03]} e5 {[%emt 0:00:07]} 2. g3 {[%emt 0:00:11]} d6 {[%emt 0:00:10]} 3. Nc3 {[%emt 0:00:45]} f5 {[%emt 0:00:12]} 4. d4 {[%emt 0:01:04]} Be7 {[%emt 0:00:12]} 5. Bh3 {[%emt 0:04:20]} Nf6 {[%emt 0:01:04]} 6. Nf3 {[%emt 0:01:31]} e4 {[%emt 0:00:37]} 7. Nh4 {[%emt 0:01:12]} g6 {[%emt 0:06:18]} 8. Bh6 {[%emt 0:01:04]} c6 {[%emt 0:06:36]} 9. O-O {[%emt 0:04:20]} Ng4 {[%emt 0:04:43]} 10. Bxg4 {[%emt 0:02:46]} Bxh4 {[%emt 0:00:51]} 11. Bh3 {[%emt 0:05:34]} Bg5 {[%emt 0:02:36]} 12. Bxg5 {[%emt 0:01:38]} Qxg5 {[%emt 0:00:06]} 13. Nxe4 {[%emt 0:02:26]} Qe7 {[%emt 0:01:57]} 14. Nc3 {[%emt 0:03:20]} O-O {[%emt 0:00:12]} 15. e3 {[%emt 0:03:43]} Nd7 {[%emt 0:00:09]} 16. b4 {[%emt 0:04:46]} Nf6 {[%emt 0:03:46]} 17. a4 {[%emt 0:04:06]} Be6 {[%emt 0:04:54]} 18. c5 {[%emt 0:01:11]} a5 {[%emt 0:14:39]} 19. cxd6 {[%emt 0:02:44]} Qxd6 {[%emt 0:00:04]} 20. bxa5 {[%emt 0:01:03]} Rxa5 {[%emt 0:01:58]} 21. Rb1 {[%emt 0:02:16]} Ra7 {[%emt 0:01:20]} 22. Qc2 {[%emt 0:02:51]} Rd8 {[%emt 0:08:12]} 23. Rfd1 {[%emt 0:01:17]} Rd7 {[%emt 0:03:21]} 24. Bg2 {[%emt 0:01:35]} Qe7 {[%emt 0:01:12]} 25. Qb2 {[%emt 0:02:00]} g5 {[%emt 0:08:42]} 26. Qb4 {[%emt 0:02:07]} Qf7 {[%emt 0:03:05]} 27. e4 {[%emt 0:04:08]} f4 {[%emt 0:02:47]} 28. Qc5 {[%emt 0:02:02]} Ra8 {[%emt 0:03:38]} 29. Qxg5+ {[%emt 0:00:49]} Kh8 {[%emt 0:00:07]} 30. Qxf4 {[%emt 0:01:04]} Qg7 {[%emt 0:00:04]} 31. d5 {[%emt 0:06:46]} cxd5 {[%emt 0:05:51]} 32. exd5 {[%emt 0:03:15]} Bg4 {[%emt 0:00:37]} 33. Bf3 {[%emt 0:02:55]} Bh3 {[%emt 0:04:13]} 34. Qh4 {[%emt 0:03:03]} Bf5 {[%emt 0:00:19]} 35. Rb4 {[%emt 0:02:23]} Rf7 {[%emt 0:05:53]} 36. d6 {[%emt 0:03:31]} Raf8 {[%emt 0:00:38]} 37. Re1 {[%emt 0:07:16]} Ng4 {[%emt 0:04:28]} 38. Nd1 {[%emt 0:04:46]} Ne5 {[%emt 0:01:07]} 39. Bh5 {[%emt 0:03:41]} Bg6 {[%emt 0:01:41]} 40. Rxe5 {[%emt 0:01:59]} Qxe5 {[%emt 0:00:09]} 41. Bxg6 {[%emt 0:06:00]} Qe1+ {[%emt 0:03:06]} 42. Kg2 {[%emt 0:00:06]} Rxf2+ {[%emt 0:00:49]} 43. Nxf2 {[%emt 0:01:12]} Qxf2+ {[%emt 0:04:08]} 44. Kh3 {[%emt 0:00:05]} Qf1+ {[%emt 0:00:05]} 45. Kg4 {[%emt 0:00:09]} Qe2+ {[%emt 0:00:05]} 46. Kh3 {[%emt 0:02:39]} Qf1+ {[%emt 0:00:08]} 47. Kg4 {[%emt 0:00:05]} Qe2+ {[%emt 0:00:13]} 48. Kh3 {[%emt 0:00:17]} 1/2-1/2

[Event "WSTCC-50 2024"]
[Site "Krakow"]
[Date "2024.07.09"]
[Round "7.2"]
[White "Shabalov, Alexander"]
[Black "Petursson, Margeir"]
[Result "1-0"]
[ECO "B95"]
[WhiteElo "2467"]
[BlackElo "2397"]
[Annotator "TA"]
[PlyCount "89"]
[EventDate "2024.07.01"]
[EventType "team-tourn"]
[EventCountry "POL"]
[SourceTitle "playchess.com"]
[Source "ChessBase"]
[SourceQuality "1"]
[TimeControl "40/5400+30:1800+30"]

{[%evp 12,89,26,0,0,0,0,0,0,-1,4,8,13,8,34,54,75,103,112,118,114,93,118,128,147,143,142,142,234,247,244,240,231,162,165,171,242,249,253,247,249,239,351,344,380,379,378,392,397,400,372,406,395,386,449,448,458,454,464,475,933,502,535,527,533,533,579,581,609,586,762,747,724,702,29961,676,666,647,636,604]} 1. e4 {[%emt 0:00:07]} c5 {[%emt 0:00:10]} 2. Nf3 {[%emt 0:00:04]} d6 {[%emt 0:00:31]} 3. d4 {[%emt 0:00:06]} cxd4 {[%emt 0:00:03]} 4. Nxd4 {[%emt 0:00:05]} Nf6 {[%emt 0:00:05]} 5. Nc3 {[%emt 0:00:05]} a6 {[%emt 0:00:05]} 6. Bg5 {[%emt 0:00:06]} e6 {[%emt 0:00:13]} 7. Qe2 {[%emt 0:00:04]} h6 {[%emt 0:05:48]} 8. Bd2 {[%emt 0:01:17]} Nc6 {[%emt 0:06:20]} 9. Nxc6 {[%emt 0:05:48]} bxc6 {[%emt 0:00:03] The position is equal.} 10. e5 {[%emt 0:02:21]} Nd5 {[%emt 0:10:53]} 11. exd6 {[%emt 0:04:24]} Bxd6 {[%emt 0:03:14]} 12. Ne4 {[%emt 0:16:40]} Be7 {[%emt 0:08:05]} (12... Be5 $5) 13. c4 {[%emt 0:09:50]} Rb8 {[%emt 0:11:40]} 14. cxd5 {[%emt 0:10:02] Black is on the road to losing.} cxd5 {[%emt 0:00:48]} 15. Nc3 {[%emt 0:01:35]} Rxb2 {[%emt 0:01:21]} 16. Nd1 {[%emt 0:02:55]} Rb4 {[%emt 0:02:08]} 17. Qd3 {[%emt 0:07:18]} Bd7 {[%emt 0:05:55][%cal Bc8d7,Bd7b5,Bb5e2,Be2c4,Bc4a6][%mdl 32]} 18. Be2 {[%emt 0:01:49]} (18. Qxa6 Ra4 19. Qb7 O-O $14) 18... Bb5 {[%emt 0:04:05]} 19. Qc2 {[%emt 0:12:35]} Re4 {[%emt 0:04:11]} (19... Ba4 $16 20. Qc1 Rb8) 20. Nc3 $18 {[%emt 0:00:18][%cal Bd1c3,Bc3e4,Be4g3,Bg3f1,Bf1e3][%mdl 32]} Bxe2 {[%emt 0:15:29]} 21. Nxe4 {[%emt 0:03:54]} (21. Nxe2 $6 Qd6 $16) 21... Bc4 {[%emt 0:00:09]} 22. Ng3 {[%emt 0:02:29]} O-O {[%emt 0:00:37]} 23. Nf1 {[%emt 0:05:39] And now Ne3 would win.} a5 {[%emt 0:01:09] [#]} (23... Qd6 $142 24. Ne3 Qe5) 24. Ne3 $1 {[%emt 0:00:14]} Ba6 {[%emt 0:00:33]} 25. Qc6 {[%emt 0:01:24]} Bd3 {[%emt 0:01:14]} 26. Rc1 {[%emt 0:00:40]} d4 {[%emt 0:02:08]} (26... Bf6 {was called for.} 27. Qc7 Qa8) 27. Nc4 {[%emt 0:00:57]} Qb8 {[%emt 0:01:03]} 28. Qf3 {[%emt 0:01:00]} (28. Bxa5 $2 Rc8 29. Qb6 Qf4 $19 (29... Bxc4 30. Qxb8 Rxb8 31. Rxc4 $15)) 28... Bxc4 {[%emt 0:02:05]} 29. Rxc4 {[%emt 0:00:07]} Qb1+ {[%emt 0:00:04]} 30. Rc1 {[%emt 0:00:13]} Qxa2 {[%emt 0:00:12]} 31. Qd3 {[%emt 0:00:15]} a4 {[%emt 0:01:42][%cal Ba5a4,Ba4a3][%mdl 32]} 32. O-O {[%emt 0:00:32]} (32. Qxd4 Rd8 33. Qe3 Bg5 $14) 32... a3 {[%emt 0:00:11]} 33. Rc7 {[%emt 0:01:52][%cal Bc1c7,Bc7d7,Bd7d6,Bd6a6][%mdl 32]} (33. Qxd4 Rd8 34. Qa7 Bf8 $18) 33... Bd6 {[%emt 0:02:28]} 34. Rd7 {[%emt 0:01:45]} Bc5 {[%emt 0:00:36]} 35. Rc1 {[%emt 0:00:28]} Bb6 {[%emt 0:01:29]} (35... Qb2 $142) 36. Rd6 {[%emt 0:01:08]} Bd8 {[%emt 0:00:45][%cal Bb6d8,Bd8e7,Be7d6][%mdl 32]} 37. Ra6 {[%emt 0:02:14]} Be7 {[%emt 0:02:36] Dodges Bb4} 38. Ra7 {[%emt 0:00:13]} ({Worse is} 38. Qxd4 Rd8 39. Qf4 g5 $15 (39... Rxd2 40. h3 $11) (39... Qxd2 40. Qxd2 Rxd2 41. Kf1 $11)) 38... Bd6 {[%emt 0:01:00]} 39. Qxd4 {[%emt 0:04:40]} Rd8 {[%emt 0:00:42][%cal Od6h2]} 40. g3 {[%emt 0:01:38] [#] Threatens to win with Bc3.} Be7 {[%emt 0:03:26]} 41. Rd7 {[%emt 0:30:34]} Rxd7 {[%emt 0:30:45]} 42. Qxd7 {[%emt 0:00:07] aiming for Qe8+.} Bf6 {[%emt 0:00:40]} 43. Qc8+ {[%emt 0:00:20]} (43. Rc8+ $142 Kh7 44. Qd3+ g6 45. Qd7 Be7 46. Qxe7 Qa1+ 47. Kg2 g5 48. Bc3 (48. Qxf7+ Qg7 49. Qxe6 Qb7+ 50. f3 Qxc8 51. Qxc8 Kg7 52. Qf5 h5 53. Bc3+ Kg8 54. Qg6+ Kf8 55. Bb4#)) 43... Kh7 {[%emt 0:00:11]} 44. Qc2+ {[%emt 0:00:11]} Qxc2 {[%emt 0:00:04]} 45. Rxc2 {[%emt 0:00:01] Weighted Error Value: White=0.22 (precise) /Black=0.39.  Mistake:       	---       	Black=4      Inaccurate:     	White=1     	Black=2      OK:         	White=19    	Black=15     Best:        	White=5     	---        Strong:       	White=1     	---} 1-0

[Event "WSTCC-50 2024"]
[Site "Krakow"]
[Date "2024.07.09"]
[Round "7.2"]
[White "Dishman, Stephen"]
[Black "Lauterbach, Ingrid"]
[Result "1-0"]
[ECO "A39"]
[WhiteElo "2308"]
[BlackElo "2023"]
[Annotator "TA"]
[PlyCount "113"]
[EventDate "2024.07.01"]
[EventType "team-tourn"]
[EventCountry "POL"]
[SourceTitle "playchess.com"]
[Source "ChessBase"]
[SourceQuality "1"]
[TimeControl "40/5400+30:1800+30"]

{[%evp 35,113,21,20,29,33,50,149,152,142,136,152,33,25,41,45,22,31,0,0,0,0,0,0,0,0,0,25,5,3,10,22,12,52,15,28,26,47,46,37,15,127,143,155,32,3,-20,10,-119,-119,-120,-128,-134,0,-211,0,-81,0,0,0,0,29988,29989,29989,29990,29990,29991,29991,29992,29992,29993,29993,29994,29994,29995,29995,29995,29995,29996,29996,29997]} 1. Nf3 {[%emt 0:00:04]} c5 {[%emt 0:00:09]} 2. c4 {[%emt 0:00:54]} Nf6 {[%emt 0:01:16]} 3. g3 {[%emt 0:00:53]} Nc6 {[%emt 0:01:18]} 4. Bg2 {[%emt 0:00:17]} g6 {[%emt 0:00:10]} 5. O-O {[%emt 0:00:26]} Bg7 {[%emt 0:00:07]} 6. Nc3 {[%emt 0:01:12]} O-O {[%emt 0:00:17]} 7. d4 {[%emt 0:00:17]} cxd4 {[%emt 0:07:16]} 8. Nxd4 {[%emt 0:00:07]} Nxd4 {[%emt 0:00:26]} 9. Qxd4 {[%emt 0:00:06]} d6 {[%emt 0:00:10]} 10. Qd3 {[%emt 0:00:39]} Ng4 {[%emt 0:01:53]} 11. b3 {[%emt 0:01:13]} Bf5 {[%emt 0:09:11]} 12. e4 {[%emt 0:03:06]} Ne5 {[%emt 0:00:47]} 13. Qd2 {[%emt 0:04:16]} Bg4 {[%emt 0:05:08]} 14. f3 {[%emt 0:03:39]} Bd7 {[%emt 0:00:36]} 15. Bb2 {[%emt 0:00:46]} a5 {[%emt 0:02:47]} 16. Rad1 {[%emt 0:07:20]} a4 {[%emt 0:03:03]} 17. f4 {[%emt 0:19:52]} Ng4 {[%emt 0:05:22]} 18. c5 {[%emt 0:05:03]} (18. Nd5 Bxb2 19. Qxb2 $17) 18... axb3 {[%emt 0:03:00]} 19. axb3 {[%emt 0:10:08]} Be6 {[%emt 0:09:13]} 20. h3 {[%emt 0:04:41]} (20. cxd6 exd6 21. Rde1 Qb6+ (21... Bxb3 22. h3 $15) 22. Kh1 Bxb3 $15 (22... Qxb3 23. Rf3 $15)) 20... Bxb3 {[%emt 0:06:05]} (20... Nf6 $14) 21. hxg4 $16 {[%emt 0:00:52]} Bxd1 {[%emt 0:00:08]} 22. Rxd1 {[%emt 0:01:20]} dxc5 {[%emt 0:04:57]} 23. e5 {[%emt 0:00:26]} (23. Nd5 $16) 23... Qxd2 $14 {[%emt 0:06:20]} 24. Rxd2 {[%emt 0:00:05]} Rfd8 {[%emt 0:00:05]} 25. Re2 {[%emt 0:06:36]} (25. Rxd8+ Rxd8 26. Bf1 (26. Bxb7 $2 Rb8 $19) 26... Rd2 $11) 25... Rab8 {[%emt 0:02:18]} 26. Nd5 {[%emt 0:06:02]} e6 {[%emt 0:02:38]} 27. Nb6 {[%emt 0:01:05]} Rd3 {[%emt 0:01:05]} 28. Kf2 {[%emt 0:01:04]} Bf8 {[%emt 0:00:35]} 29. Be4 {[%emt 0:03:10]} Rb3 {[%emt 0:03:08]} 30. Nc4 {[%emt 0:03:46]} b6 {[%emt 0:02:05]} 31. Rd2 {[%emt 0:02:57]} Rb4 {[%emt 0:01:48]} 32. Nd6 $1 {[%emt 0:01:09]} Be7 {[%emt 0:07:55]} (32... Bxd6 33. exd6 Rxe4 34. d7 $18) 33. Bc6 {[%emt 0:01:36]} Kf8 {[%emt 0:01:26]} 34. f5 {[%emt 0:02:51]} Bg5 {[%emt 0:01:58]} 35. Re2 {[%emt 0:00:50]} Rxg4 {[%emt 0:01:42]} 36. f6 {[%emt 0:02:28]} Rb4 {[%emt 0:02:18]} 37. Ne4 {[%emt 0:01:21]} Bh6 {[%emt 0:00:30]} (37... h6 $11 {remains equal.}) 38. Bc3 $16 {[%emt 0:01:12]} Rb3 {[%emt 0:02:04]} 39. Ra2 {[%emt 0:00:54]} (39. Bd2 $1 $16 {[%cal Rd2h6]} g5 (39... Bxd2 $2 40. Rxd2 Kg8 41. Rd7 $18) 40. Nd6 (40. Nxg5 Bxg5 41. Bxg5 h5 $16)) 39... Kg8 $1 $14 {[%emt 0:00:35]} 40. Ra7 {[%emt 0:02:29]} (40. Ba4 $5 Rb1 $8 41. Re2 $14) 40... c4 {[%emt 0:02:37] [#]} 41. Nd6 {[%emt 0:14:06]} (41. Rc7 $1 $11) 41... Rxc3 $17 {[%emt 0:01:39]} 42. Nxf7 {[%emt 0:00:04]} Be3+ $1 {[%emt 0:02:30]} 43. Ke2 {[%emt 0:01:22]} b5 {[%emt 0:00:43]} (43... Rf8 $1 $17 {[%cal Rf8f7]} 44. Nd6 Bc5 45. Rg7+ Kh8 46. Nf7+ Rxf7 47. Rxf7 Re3+ (47... Rxg3 $2 48. Kd1 $19) 48. Kd2 Rxe5) 44. Rc7 $2 {[%emt 0:00:34] [#]} (44. Re7 $11 {and White stays safe.}) 44... b4 $2 {[%emt 0:04:05]} ({Black should try} 44... Rf8 $1 $19 {[%cal Rf8f7]} 45. Nd6 Bd4 46. Rg7+ Kh8 47. Bxb5 Bxe5 (47... Rxg3 48. Bxc4 Re3+ 49. Kd2 $17) (47... Re3+ 48. Kd1 $17) 48. Nf7+ Rxf7 49. Rxf7 Kg8 (49... Rxg3 50. Rf8#) 50. Rg7+ Kf8 51. Rxh7 Bxf6) 45. Nd6 {[%emt 0:01:52]} (45. Re7 $1 $11) 45... Bb6 {[%emt 0:03:37]} (45... Bh6 $17 46. Kf2 Bf8) 46. Rg7+ $11 {[%emt 0:00:16]} Kf8 {[%emt 0:01:05]} 47. Rxh7 {[%emt 0:00:44]} Re3+ $2 {[%emt 0:03:38][%mdl 8192]} ({And not} 47... Rxg3 48. Rh8#) (47... Rc2+ 48. Kd1 Kg8 49. Rg7+ (49. Kxc2 $2 b3+ 50. Kd1 Kxh7 $19) 49... Kf8 50. Bd7 (50. Kxc2 b3+ 51. Kd2 b2 $18) 50... Ra8 51. Bxe6 (51. Kxc2 b3+ 52. Kc3 Ba5+ 53. Kb2 Bb6 54. Bxe6 Bd4+ 55. Kc1 Ra1+ 56. Kd2 Ra2+ 57. Kd1 Ra1+ 58. Ke2 Ra2+ 59. Kf3 Rf2+ 60. Kg4 Rxf6 61. Rg8+ Ke7 62. Re8#) (51. Kxc2 Ra7 $18)) (47... Kg8 $11 48. Rg7+ Kf8) 48. Kf1 {[%emt 0:00:34]} Kg8 {[%emt 0:00:17]} 49. Rg7+ {[%emt 0:00:20]} Kf8 {[%emt 0:00:16] [#]} 50. Nf7 $1 {[%emt 0:08:52]} Rd8 {[%emt 0:04:51]} 51. Nh6 {[%emt 0:00:57]} ({Stronger than} 51. Nxd8 Bxd8 52. Rh7 Rxe5 53. Rh8+ Kf7 54. Rxd8 Rc5 $15 (54... Kxf6 55. Rb8 $11)) 51... Rd1+ {[%emt 0:02:52]} 52. Kg2 {[%emt 0:00:16]} Re2+ {[%emt 0:02:16]} 53. Kh3 {[%emt 0:00:11]} Rh1+ {[%emt 0:01:53]} 54. Bxh1 {[%emt 0:00:12]} Ke8 {[%emt 0:00:04]} 55. f7+ {[%emt 0:05:04]} Ke7 {[%emt 0:01:20]} 56. Rg8 {[%emt 0:00:12]} Rf2 {[%emt 0:00:17]} 57. Bc6 {[%emt 0:00:28]} 1-0